[Event "Titled Tuesday Blitz May 31 Late 2022"]
[White "Abarca Gonzalez, Nicolas"]
[Black "Prydun, Andriy"]
[WhiteFideId "3409422"]
[BlackFideId "14145898"]
[WhiteElo "2504"]
[BlackElo "2063"]
[Result "1-0"]
[Round "01"]
[TimeControl "180+1"]
[Date "2022.06.01"]
[WhiteClock "0:00:07"]
[BlackClock "0:00:02"]

1. e4 {[%clk 0:02:58]}  d5 {[%clk 0:01:13]} 2. exd5 {[%clk 0:02:57]}  Qxd5 {[%clk 0:01:14]} 3. Nc3 {[%clk 0:02:56]}  Qd6 {[%clk 0:01:15]} 4. Nb5 {[%clk 0:02:56]}  Qd8 {[%clk 0:01:14]} 5. Nf3 {[%clk 0:02:57]}  Nf6 {[%clk 0:01:14]} 6. Bc4 {[%clk 0:02:56]}  c6 {[%clk 0:01:07]} 7. Nc3 {[%clk 0:02:55]}  Bf5 {[%clk 0:01:07]} 8. Ne5 {[%clk 0:02:54]}  e6 {[%clk 0:01:07]} 9. Qe2 {[%clk 0:02:55]}  Nbd7 {[%clk 0:01:03]} 10. d4 {[%clk 0:02:24]}  Be7 {[%clk 0:00:53]} 11. Bf4 {[%clk 0:02:07]}  Nb6 {[%clk 0:00:49]} 12. O-O-O {[%clk 0:02:00]}  Nxc4 {[%clk 0:00:47]} 13. Nxc4 {[%clk 0:02:01]}  Nd5 {[%clk 0:00:47]} 14. Bd2 {[%clk 0:01:55]}  Nxc3 {[%clk 0:00:46]} 15. Bxc3 {[%clk 0:01:56]}  O-O {[%clk 0:00:45]} 16. g4 {[%clk 0:01:54]}  Bg6 {[%clk 0:00:42]} 17. h4 {[%clk 0:01:39]}  b5 {[%clk 0:00:41]} 18. h5 {[%clk 0:01:34]}  Bxc2 {[%clk 0:00:35]} 19. Kxc2 {[%clk 0:01:19]}  bxc4 {[%clk 0:00:36]} 20. h6 {[%clk 0:01:20]}  g6 {[%clk 0:00:35]} 21. d5 {[%clk 0:01:15]}  exd5 {[%clk 0:00:29]} 22. Qe5 {[%clk 0:01:15]}  f6 {[%clk 0:00:29]} 23. Qe6+ {[%clk 0:01:15]}  Rf7 {[%clk 0:00:29]} 24. Qxc6 {[%clk 0:01:09]}  Qc8 {[%clk 0:00:28]} 25. Qxc8+ {[%clk 0:01:05]}  Rxc8 {[%clk 0:00:28]} 26. Rxd5 {[%clk 0:01:06]}  Bc5 {[%clk 0:00:26]} 27. f4 {[%clk 0:01:00]}  Re7 {[%clk 0:00:19]} 28. Bxf6 {[%clk 0:00:51]}  Re2+ {[%clk 0:00:19]} 29. Rd2 {[%clk 0:00:52]}  Rxd2+ {[%clk 0:00:19]} 30. Kxd2 {[%clk 0:00:53]}  Kf7 {[%clk 0:00:19]} 31. Bg5 {[%clk 0:00:46]}  Bb4+ {[%clk 0:00:17]} 32. Ke3 {[%clk 0:00:41]}  c3 {[%clk 0:00:16]} 33. bxc3 {[%clk 0:00:41]}  Rxc3+ {[%clk 0:00:16]} 34. Kd4 {[%clk 0:00:40]}  Ra3 {[%clk 0:00:16]} 35. Rh2 {[%clk 0:00:40]}  Bc3+ {[%clk 0:00:15]} 36. Ke4 {[%clk 0:00:38]}  a5 {[%clk 0:00:07]} 37. Rc2 {[%clk 0:00:35]}  Ke6 {[%clk 0:00:06]} 38. f5+ {[%clk 0:00:34]}  gxf5+ {[%clk 0:00:07]} 39. gxf5+ {[%clk 0:00:35]}  Kd6 {[%clk 0:00:07]} 40. Bc1 {[%clk 0:00:26]}  Ra4+ {[%clk 0:00:07]} 41. Kd3 {[%clk 0:00:25]}  Bf6 {[%clk 0:00:06]} 42. Re2 {[%clk 0:00:21]}  Rd4+ {[%clk 0:00:06]} 43. Kc2 {[%clk 0:00:21]}  Kd7 {[%clk 0:00:04]} 44. Bb2 {[%clk 0:00:18]}  Rc4+ {[%clk 0:00:03]} 45. Kd3 {[%clk 0:00:19]}  Rc6 {[%clk 0:00:02]} 46. Bxf6 {[%clk 0:00:13]}  Rxf6 {[%clk 0:00:03]} 47. Ke4 {[%clk 0:00:13]}  Rxh6 {[%clk 0:00:03]} 48. Ke5 {[%clk 0:00:14]}  Ke7 {[%clk 0:00:03]} 49. Rb2 {[%clk 0:00:14]}  Rh1 {[%clk 0:00:02]} 50. Rb7+ {[%clk 0:00:14]}  Kd8 {[%clk 0:00:02]} 51. Kd6 {[%clk 0:00:10]}  Rd1+ {[%clk 0:00:02]} 52. Ke6 {[%clk 0:00:11]}  Re1+ {[%clk 0:00:02]} 53. Kf6 {[%clk 0:00:11]}  h5 {[%clk 0:00:02]} 54. Rh7 {[%clk 0:00:09]}  Rh1 {[%clk 0:00:03]} 55. Rh8+ {[%clk 0:00:09]}  Kd7 {[%clk 0:00:03]} 56. Kg5 {[%clk 0:00:08]}  Kd6 {[%clk 0:00:02]} 57. Rxh5 {[%clk 0:00:06]}  Rg1+ {[%clk 0:00:02]} 58. Kf6 {[%clk 0:00:06]}  Rf1 {[%clk 0:00:03]} 59. Rh2 {[%clk 0:00:07]}  Rf4 {[%clk 0:00:02]} 60. Rd2+ {[%clk 0:00:07]}  Kc5 {[%clk 0:00:02]} 61. Ke5 {[%clk 0:00:08]}  Rf1 {[%clk 0:00:02]} 62. f6 {[%clk 0:00:07]}  Re1+ {[%clk 0:00:03]} 63. Kf5 {[%clk 0:00:07]}  Rf1+ {[%clk 0:00:03]} 64. Kg6 {[%clk 0:00:08]}  Kb4 {[%clk 0:00:03]} 65. f7 {[%clk 0:00:07]}  Kc3 {[%clk 0:00:03]} 66. Rg2 {[%clk 0:00:06]}  a4 {[%clk 0:00:02]} 67. Kg7 {[%clk 0:00:07]} 1-0


[Site "https://www.chess.com"]

[Event "Titled Tuesday Blitz May 31 Late 2022"]
[White "Abdrlauf, Elham"]
[Black "Mikhalsky, Vladimir"]
[WhiteFideId "1533533"]
[BlackFideId "14144352"]
[WhiteElo "2371"]
[BlackElo "2301"]
[Result "1-0"]
[Round "01"]
[TimeControl "180+1"]
[Date "2022.06.01"]
[WhiteClock "0:02:01"]
[BlackClock "0:01:24"]

1. e4 {[%clk 0:02:57]}  g6 {[%clk 0:02:58]} 2. d4 {[%clk 0:02:57]}  Bg7 {[%clk 0:02:58]} 3. Nf3 {[%clk 0:02:58]}  d6 {[%clk 0:02:57]} 4. Be3 {[%clk 0:02:57]}  a6 {[%clk 0:02:56]} 5. c4 {[%clk 0:02:58]}  Nf6 {[%clk 0:02:53]} 6. Nc3 {[%clk 0:02:57]}  O-O {[%clk 0:02:53]} 7. Be2 {[%clk 0:02:55]}  e5 {[%clk 0:02:48]} 8. O-O {[%clk 0:02:52]}  Nc6 {[%clk 0:02:44]} 9. h3 {[%clk 0:02:49]}  Nh5 {[%clk 0:02:40]} 10. Qd2 {[%clk 0:02:44]}  exd4 {[%clk 0:02:34]} 11. Nxd4 {[%clk 0:02:44]}  Nxd4 {[%clk 0:02:31]} 12. Bxd4 {[%clk 0:02:43]}  Nf4 {[%clk 0:02:29]} 13. Bxg7 {[%clk 0:02:40]}  Nxe2+ {[%clk 0:02:28]} 14. Qxe2 {[%clk 0:02:40]}  Kxg7 {[%clk 0:02:28]} 15. Rad1 {[%clk 0:02:38]}  Be6 {[%clk 0:02:27]} 16. f4 {[%clk 0:02:37]}  b5 {[%clk 0:02:05]} 17. cxb5 {[%clk 0:02:27]}  axb5 {[%clk 0:02:05]} 18. Qxb5 {[%clk 0:02:26]}  Bxa2 {[%clk 0:01:52]} 19. f5 {[%clk 0:02:23]}  Qb8 {[%clk 0:01:46]} 20. f6+ {[%clk 0:02:20]}  Kg8 {[%clk 0:01:45]} 21. Qg5 {[%clk 0:02:21]}  Kh8 {[%clk 0:01:36]} 22. Rf4 {[%clk 0:02:03]}  Qxb2 {[%clk 0:01:24]} 23. Qh6 {[%clk 0:02:01]} 1-0


[Site "https://www.chess.com"]

[Event "Titled Tuesday Blitz May 31 Late 2022"]
[White "Andreikin, Dmitry"]
[Black "Krstulovic, Alex"]
[WhiteFideId "4158814"]
[BlackFideId "760056"]
[WhiteElo "2736"]
[BlackElo "2193"]
[Result "1-0"]
[Round "01"]
[TimeControl "180+1"]
[Date "2022.05.31"]
[WhiteClock "0:01:12"]
[BlackClock "0:00:15"]

1. d4 {[%clk 0:02:59]}  Nf6 {[%clk 0:02:58]} 2. c4 {[%clk 0:02:59]}  e6 {[%clk 0:02:58]} 3. Nf3 {[%clk 0:02:58]}  d5 {[%clk 0:02:58]} 4. g3 {[%clk 0:02:56]}  dxc4 {[%clk 0:02:57]} 5. Bg2 {[%clk 0:02:56]}  c6 {[%clk 0:02:56]} 6. a4 {[%clk 0:02:53]}  c5 {[%clk 0:02:42]} 7. O-O {[%clk 0:02:52]}  Nc6 {[%clk 0:02:41]} 8. dxc5 {[%clk 0:02:50]}  Qxd1 {[%clk 0:02:41]} 9. Rxd1 {[%clk 0:02:50]}  Bxc5 {[%clk 0:02:41]} 10. Nbd2 {[%clk 0:02:48]}  O-O {[%clk 0:02:14]} 11. Nxc4 {[%clk 0:02:47]}  Ne4 {[%clk 0:02:10]} 12. Be3 {[%clk 0:02:46]}  Bxe3 {[%clk 0:02:09]} 13. Nxe3 {[%clk 0:02:46]}  Nc5 {[%clk 0:02:01]} 14. Nc4 {[%clk 0:02:43]}  Rb8 {[%clk 0:01:50]} 15. Nfe5 {[%clk 0:02:36]}  Nb4 {[%clk 0:01:37]} 16. Nd6 {[%clk 0:02:11]}  b6 {[%clk 0:01:32]} 17. Rd4 {[%clk 0:02:04]}  Nc2 {[%clk 0:01:31]} 18. Rad1 {[%clk 0:01:50]}  Nxd4 {[%clk 0:01:29]} 19. Rxd4 {[%clk 0:01:51]}  Bb7 {[%clk 0:00:57]} 20. Nxb7 {[%clk 0:01:45]}  Nxb7 {[%clk 0:00:58]} 21. Nd7 {[%clk 0:01:32]}  Rfd8 {[%clk 0:00:56]} 22. b4 {[%clk 0:01:32]}  a5 {[%clk 0:00:44]} 23. e3 {[%clk 0:01:32]}  Kh8 {[%clk 0:00:35]} 24. Nxb8 {[%clk 0:01:29]}  Rxd4 {[%clk 0:00:28]} 25. exd4 {[%clk 0:01:29]}  b5 {[%clk 0:00:16]} 26. bxa5 {[%clk 0:01:14]}  bxa4 {[%clk 0:00:15]} 27. a6 {[%clk 0:01:12]} 1-0


[Site "https://www.chess.com"]

[Event "Titled Tuesday Blitz May 31 Late 2022"]
[White "Bazeev, German"]
[Black "hakki1"]
[WhiteFideId "24119350"]
[WhiteElo "2493"]
[BlackElo "2463"]
[Result "1-0"]
[Round "01"]
[TimeControl "180+1"]
[Date "2022.05.31"]
[WhiteClock "0:00:13"]
[BlackClock "0:00:05"]

1. d4 {[%clk 0:02:58]}  g6 {[%clk 0:02:59]} 2. e4 {[%clk 0:02:56]}  Bg7 {[%clk 0:03:00]} 3. Nc3 {[%clk 0:02:56]}  d6 {[%clk 0:03:00]} 4. f4 {[%clk 0:02:54]}  Nc6 {[%clk 0:02:58]} 5. Nf3 {[%clk 0:02:29]}  Bg4 {[%clk 0:02:54]} 6. Be3 {[%clk 0:02:27]}  Bxf3 {[%clk 0:02:49]} 7. gxf3 {[%clk 0:02:28]}  e6 {[%clk 0:02:48]} 8. Qd2 {[%clk 0:02:20]}  Nge7 {[%clk 0:02:47]} 9. O-O-O {[%clk 0:02:20]}  d5 {[%clk 0:02:41]} 10. h4 {[%clk 0:02:11]}  h5 {[%clk 0:02:29]} 11. Ne2 {[%clk 0:02:08]}  Qd7 {[%clk 0:02:24]} 12. c3 {[%clk 0:02:07]}  O-O-O {[%clk 0:02:24]} 13. Ng3 {[%clk 0:02:07]}  Kb8 {[%clk 0:02:18]} 14. Kb1 {[%clk 0:01:54]}  Na5 {[%clk 0:02:18]} 15. b3 {[%clk 0:01:52]}  Nac6 {[%clk 0:01:51]} 16. Qc2 {[%clk 0:01:50]}  a6 {[%clk 0:01:48]} 17. Bc1 {[%clk 0:01:48]}  f5 {[%clk 0:01:45]} 18. Bd3 {[%clk 0:01:42]}  Rhf8 {[%clk 0:01:42]} 19. Ne2 {[%clk 0:01:41]}  Bh6 {[%clk 0:01:31]} 20. e5 {[%clk 0:01:39]}  Nc8 {[%clk 0:01:27]} 21. Rhg1 {[%clk 0:01:37]}  N6e7 {[%clk 0:01:27]} 22. Rg2 {[%clk 0:01:36]}  Rf7 {[%clk 0:01:24]} 23. Ng1 {[%clk 0:01:36]}  Na7 {[%clk 0:01:18]} 24. Nh3 {[%clk 0:01:33]}  Nb5 {[%clk 0:01:18]} 25. a4 {[%clk 0:01:30]}  Na7 {[%clk 0:01:17]} 26. Ba3 {[%clk 0:01:29]}  Nac8 {[%clk 0:01:15]} 27. Ng5 {[%clk 0:01:24]}  Bxg5 {[%clk 0:01:14]} 28. fxg5 {[%clk 0:01:23]}  Na7 {[%clk 0:01:08]} 29. f4 {[%clk 0:01:23]}  Rc8 {[%clk 0:01:06]} 30. Qb2 {[%clk 0:01:22]}  Nec6 {[%clk 0:01:06]} 31. Rc2 {[%clk 0:01:22]}  Na5 {[%clk 0:01:06]} 32. Be2 {[%clk 0:01:16]}  N7c6 {[%clk 0:01:04]} 33. c4 {[%clk 0:01:12]}  dxc4 {[%clk 0:00:42]} 34. bxc4 {[%clk 0:01:12]}  Nxe5 {[%clk 0:00:42]} 35. fxe5 {[%clk 0:01:01]}  Qxa4 {[%clk 0:00:42]} 36. d5 {[%clk 0:01:02]}  Re8 {[%clk 0:00:34]} 37. d6 {[%clk 0:01:00]}  Nc6 {[%clk 0:00:28]} 38. Bf3 {[%clk 0:00:53]}  cxd6 {[%clk 0:00:26]} 39. Rxd6 {[%clk 0:00:52]}  Rc7 {[%clk 0:00:24]} 40. Bc5 {[%clk 0:00:33]}  Rec8 {[%clk 0:00:11]} 41. Bb6 {[%clk 0:00:31]}  Re7 {[%clk 0:00:11]} 42. Bxc6 {[%clk 0:00:29]}  Rxc6 {[%clk 0:00:10]} 43. Rd8+ {[%clk 0:00:28]}  Rc8 {[%clk 0:00:10]} 44. Rxc8+ {[%clk 0:00:28]}  Kxc8 {[%clk 0:00:11]} 45. Rd2 {[%clk 0:00:29]}  Rd7 {[%clk 0:00:10]} 46. Rxd7 {[%clk 0:00:28]}  Qxd7 {[%clk 0:00:10]} 47. Qb4 {[%clk 0:00:26]}  Qd3+ {[%clk 0:00:09]} 48. Kb2 {[%clk 0:00:26]}  Qe2+ {[%clk 0:00:10]} 49. Ka3 {[%clk 0:00:26]}  Qd3+ {[%clk 0:00:10]} 50. Kb2 {[%clk 0:00:26]}  Qe2+ {[%clk 0:00:10]} 51. Kb3 {[%clk 0:00:27]}  Qd3+ {[%clk 0:00:10]} 52. Qc3 {[%clk 0:00:27]}  Qb1+ {[%clk 0:00:10]} 53. Qb2 {[%clk 0:00:28]}  Qd3+ {[%clk 0:00:10]} 54. Kb4 {[%clk 0:00:26]}  Kd7 {[%clk 0:00:08]} 55. Qd4+ {[%clk 0:00:26]}  Qxd4 {[%clk 0:00:08]} 56. Bxd4 {[%clk 0:00:27]}  Kc6 {[%clk 0:00:08]} 57. Ka5 {[%clk 0:00:22]}  Kc7 {[%clk 0:00:08]} 58. Bc5 {[%clk 0:00:15]}  Kc6 {[%clk 0:00:08]} 59. Bb6 {[%clk 0:00:14]}  Kd7 {[%clk 0:00:08]} 60. Bf2 {[%clk 0:00:14]}  Kc6 {[%clk 0:00:08]} 61. Kb4 {[%clk 0:00:14]}  b6 {[%clk 0:00:08]} 62. Be3 {[%clk 0:00:14]}  Kb7 {[%clk 0:00:05]} 63. c5 {[%clk 0:00:14]}  bxc5+ {[%clk 0:00:05]} 64. Kxc5 {[%clk 0:00:15]}  Kc7 {[%clk 0:00:06]} 65. Bd2 {[%clk 0:00:15]}  Kd7 {[%clk 0:00:06]} 66. Kb6 {[%clk 0:00:15]}  a5 {[%clk 0:00:05]} 67. Bxa5 {[%clk 0:00:13]}  Ke7 {[%clk 0:00:05]} 68. Bd2 {[%clk 0:00:12]}  Kd7 {[%clk 0:00:05]} 69. Kb7 {[%clk 0:00:12]}  Kd8 {[%clk 0:00:06]} 70. Kc6 {[%clk 0:00:12]}  Ke7 {[%clk 0:00:06]} 71. Kc7 {[%clk 0:00:12]}  Kf7 {[%clk 0:00:05]} 72. Kd6 {[%clk 0:00:13]} 1-0


[Site "https://www.chess.com"]

[Event "Titled Tuesday Blitz May 31 Late 2022"]
[White "Bibasa, Bob"]
[Black "Maghsoodloo, Parham"]
[WhiteFideId "10000240"]
[BlackFideId "12539929"]
[WhiteElo "2032"]
[BlackElo "2630"]
[Result "0-1"]
[Round "01"]
[TimeControl "180+1"]
[Date "2022.05.31"]
[WhiteClock "0:02:10"]
[BlackClock "0:02:29"]

1. e4 {[%clk 0:03:00]}  c5 {[%clk 0:02:59]} 2. Nf3 {[%clk 0:03:01]}  Nc6 {[%clk 0:02:59]} 3. Bb5 {[%clk 0:03:00]}  e6 {[%clk 0:02:59]} 4. c3 {[%clk 0:03:00]}  Nge7 {[%clk 0:02:58]} 5. d4 {[%clk 0:02:59]}  cxd4 {[%clk 0:02:56]} 6. cxd4 {[%clk 0:02:59]}  a6 {[%clk 0:02:55]} 7. Ba4 {[%clk 0:02:59]}  d5 {[%clk 0:02:55]} 8. e5 {[%clk 0:02:55]}  Nf5 {[%clk 0:02:51]} 9. O-O {[%clk 0:02:52]}  Be7 {[%clk 0:02:51]} 10. Nc3 {[%clk 0:02:49]}  O-O {[%clk 0:02:51]} 11. Be3 {[%clk 0:02:48]}  Bd7 {[%clk 0:02:50]} 12. Bc2 {[%clk 0:02:47]}  Nxe3 {[%clk 0:02:47]} 13. fxe3 {[%clk 0:02:47]}  Rc8 {[%clk 0:02:48]} 14. a3 {[%clk 0:02:45]}  Na5 {[%clk 0:02:47]} 15. Qd3 {[%clk 0:02:40]}  g6 {[%clk 0:02:47]} 16. Ba4 {[%clk 0:02:26]}  Rxc3 {[%clk 0:02:46]} 17. bxc3 {[%clk 0:02:19]}  Bxa4 {[%clk 0:02:46]} 18. Rab1 {[%clk 0:02:17]}  Bb5 {[%clk 0:02:46]} 19. Qd2 {[%clk 0:02:16]}  Bxf1 {[%clk 0:02:44]} 20. Kxf1 {[%clk 0:02:16]}  Nc4 {[%clk 0:02:44]} 21. Qf2 {[%clk 0:02:15]}  b5 {[%clk 0:02:43]} 22. Kg1 {[%clk 0:02:15]}  Nxa3 {[%clk 0:02:43]} 23. Rf1 {[%clk 0:02:15]}  Nc4 {[%clk 0:02:41]} 24. h4 {[%clk 0:02:15]}  a5 {[%clk 0:02:33]} 25. h5 {[%clk 0:02:15]}  a4 {[%clk 0:02:33]} 26. hxg6 {[%clk 0:02:14]}  fxg6 {[%clk 0:02:33]} 27. g4 {[%clk 0:02:14]}  a3 {[%clk 0:02:30]} 28. Qg2 {[%clk 0:02:10]}  Nxe3 {[%clk 0:02:29]} 0-1


[Site "https://www.chess.com"]

[Event "Titled Tuesday Blitz May 31 Late 2022"]
[White "Bluebaum, Matthias"]
[Black "Trent, Lawrence"]
[WhiteFideId "24651516"]
[BlackFideId "408638"]
[WhiteElo "2556"]
[BlackElo "2474"]
[Result "1-0"]
[Round "01"]
[TimeControl "180+1"]
[Date "2022.05.31"]
[WhiteClock "0:00:39"]
[BlackClock "0:00:39"]

1. d4 {[%clk 0:03:00]}  Nf6 {[%clk 0:02:57]} 2. c4 {[%clk 0:03:00]}  e6 {[%clk 0:02:57]} 3. Nc3 {[%clk 0:03:01]}  Bb4 {[%clk 0:02:57]} 4. e3 {[%clk 0:03:02]}  O-O {[%clk 0:02:57]} 5. Bd2 {[%clk 0:03:02]}  d5 {[%clk 0:02:55]} 6. Nf3 {[%clk 0:03:03]}  b6 {[%clk 0:02:54]} 7. cxd5 {[%clk 0:03:03]}  exd5 {[%clk 0:02:54]} 8. Rc1 {[%clk 0:03:04]}  a6 {[%clk 0:02:54]} 9. Bd3 {[%clk 0:03:04]}  Bb7 {[%clk 0:02:55]} 10. O-O {[%clk 0:03:04]}  Bd6 {[%clk 0:02:55]} 11. Ne5 {[%clk 0:03:05]}  Ne4 {[%clk 0:02:51]} 12. Nxe4 {[%clk 0:02:37]}  dxe4 {[%clk 0:02:51]} 13. Bc4 {[%clk 0:02:38]}  Nd7 {[%clk 0:02:47]} 14. Bc3 {[%clk 0:02:30]}  Bxe5 {[%clk 0:02:42]} 15. dxe5 {[%clk 0:02:31]}  Nc5 {[%clk 0:02:42]} 16. Qg4 {[%clk 0:02:26]}  Qe7 {[%clk 0:02:32]} 17. Rcd1 {[%clk 0:02:16]}  Rad8 {[%clk 0:02:14]} 18. Rd4 {[%clk 0:02:13]}  Ne6 {[%clk 0:02:12]} 19. Rxd8 {[%clk 0:01:50]}  Rxd8 {[%clk 0:02:11]} 20. Rd1 {[%clk 0:01:51]}  Rxd1+ {[%clk 0:01:52]} 21. Qxd1 {[%clk 0:01:51]}  Qd8 {[%clk 0:01:52]} 22. Qxd8+ {[%clk 0:01:43]}  Nxd8 {[%clk 0:01:52]} 23. Kf1 {[%clk 0:01:40]}  b5 {[%clk 0:01:50]} 24. Bb3 {[%clk 0:01:37]}  c5 {[%clk 0:01:50]} 25. a3 {[%clk 0:01:27]}  Kf8 {[%clk 0:01:43]} 26. Ke2 {[%clk 0:01:25]}  Ke7 {[%clk 0:01:43]} 27. f4 {[%clk 0:01:26]}  Bc8 {[%clk 0:01:34]} 28. Ba5 {[%clk 0:01:23]}  Nb7 {[%clk 0:01:30]} 29. Bb6 {[%clk 0:01:14]}  Be6 {[%clk 0:01:26]} 30. Bc2 {[%clk 0:01:14]}  Bd5 {[%clk 0:01:22]} 31. b4 {[%clk 0:01:12]}  Kd7 {[%clk 0:01:05]} 32. Kd2 {[%clk 0:00:57]}  Kc6 {[%clk 0:01:05]} 33. Ba7 {[%clk 0:00:58]}  cxb4 {[%clk 0:01:03]} 34. axb4 {[%clk 0:00:59]}  a5 {[%clk 0:01:03]} 35. bxa5 {[%clk 0:00:47]}  Nxa5 {[%clk 0:01:04]} 36. Kc3 {[%clk 0:00:47]}  Nb7 {[%clk 0:00:57]} 37. Kd4 {[%clk 0:00:44]}  Nd8 {[%clk 0:00:49]} 38. f5 {[%clk 0:00:40]}  b4 {[%clk 0:00:43]} 39. Ba4+ {[%clk 0:00:37]}  Kb7 {[%clk 0:00:38]} 40. Kxd5 {[%clk 0:00:38]}  Kxa7 {[%clk 0:00:39]} 41. e6 {[%clk 0:00:38]}  fxe6+ {[%clk 0:00:39]} 42. fxe6 {[%clk 0:00:39]} 1-0


[Site "https://www.chess.com"]

[Event "Titled Tuesday Blitz May 31 Late 2022"]
[White "Bryakin, Mikhail"]
[Black "Prabhu, Naveen"]
[WhiteFideId "4165314"]
[BlackFideId "30939372"]
[WhiteElo "2417"]
[BlackElo "2416"]
[Result "1-0"]
[Round "01"]
[TimeControl "180+1"]
[Date "2022.06.01"]
[WhiteClock "0:00:16"]
[BlackClock "0:00:12"]

1. e4 {[%clk 0:03:00]}  e5 {[%clk 0:02:52]} 2. Nf3 {[%clk 0:02:57]}  Nc6 {[%clk 0:02:48]} 3. Bb5 {[%clk 0:02:55]}  Bc5 {[%clk 0:02:46]} 4. O-O {[%clk 0:02:38]}  d6 {[%clk 0:02:44]} 5. c3 {[%clk 0:02:37]}  Bg4 {[%clk 0:02:37]} 6. h3 {[%clk 0:02:36]}  Bh5 {[%clk 0:02:36]} 7. b4 {[%clk 0:02:33]}  Bb6 {[%clk 0:02:35]} 8. a4 {[%clk 0:02:34]}  a5 {[%clk 0:02:31]} 9. bxa5 {[%clk 0:02:32]}  Rxa5 {[%clk 0:02:13]} 10. Na3 {[%clk 0:02:24]}  Ne7 {[%clk 0:01:47]} 11. Nc4 {[%clk 0:02:21]}  Ra7 {[%clk 0:01:48]} 12. Nxb6 {[%clk 0:02:21]}  cxb6 {[%clk 0:01:49]} 13. Bb2 {[%clk 0:02:12]}  O-O {[%clk 0:01:48]} 14. d4 {[%clk 0:02:12]}  Qc7 {[%clk 0:01:43]} 15. Qd3 {[%clk 0:02:01]}  Rd8 {[%clk 0:01:40]} 16. Nd2 {[%clk 0:01:53]}  Ng6 {[%clk 0:01:38]} 17. g3 {[%clk 0:01:46]}  Nge7 {[%clk 0:01:32]} 18. Kh2 {[%clk 0:01:33]}  Bg6 {[%clk 0:01:31]} 19. f4 {[%clk 0:01:30]}  exf4 {[%clk 0:01:30]} 20. Rxf4 {[%clk 0:01:28]}  d5 {[%clk 0:01:30]} 21. Raf1 {[%clk 0:01:01]}  h6 {[%clk 0:01:28]} 22. Qf3 {[%clk 0:00:57]}  dxe4 {[%clk 0:01:24]} 23. Nxe4 {[%clk 0:00:56]}  Rf8 {[%clk 0:01:18]} 24. c4 {[%clk 0:00:50]}  Na5 {[%clk 0:01:16]} 25. Nd2 {[%clk 0:00:47]}  Raa8 {[%clk 0:01:13]} 26. d5 {[%clk 0:00:46]}  Nc8 {[%clk 0:01:08]} 27. Qc3 {[%clk 0:00:40]}  f6 {[%clk 0:01:01]} 28. Rg4 {[%clk 0:00:40]}  Qf7 {[%clk 0:00:59]} 29. Ba3 {[%clk 0:00:24]}  Rd8 {[%clk 0:00:53]} 30. Ne4 {[%clk 0:00:22]}  Bxe4 {[%clk 0:00:31]} 31. Rxe4 {[%clk 0:00:23]}  Nd6 {[%clk 0:00:31]} 32. Rg4 {[%clk 0:00:19]}  Nxb5 {[%clk 0:00:31]} 33. axb5 {[%clk 0:00:18]}  Re8 {[%clk 0:00:31]} 34. Rxf6 {[%clk 0:00:15]}  Re2+ {[%clk 0:00:30]} 35. Kg1 {[%clk 0:00:15]}  Re1+ {[%clk 0:00:09]} 36. Qxe1 {[%clk 0:00:14]}  Qxf6 {[%clk 0:00:09]} 37. Be7 {[%clk 0:00:10]}  Qf7 {[%clk 0:00:09]} 38. Qe6 {[%clk 0:00:09]}  Qxe6 {[%clk 0:00:09]} 39. dxe6 {[%clk 0:00:10]}  Re8 {[%clk 0:00:10]} 40. Bf6 {[%clk 0:00:11]}  Rxe6 {[%clk 0:00:10]} 41. Bxg7 {[%clk 0:00:11]}  Kf7 {[%clk 0:00:10]} 42. Bd4 {[%clk 0:00:11]}  Nb3 {[%clk 0:00:10]} 43. Bf2 {[%clk 0:00:11]}  Nc5 {[%clk 0:00:08]} 44. Rf4+ {[%clk 0:00:10]}  Kg6 {[%clk 0:00:08]} 45. Bxc5 {[%clk 0:00:10]}  bxc5 {[%clk 0:00:09]} 46. Kf2 {[%clk 0:00:11]}  b6 {[%clk 0:00:09]} 47. g4 {[%clk 0:00:11]}  Kg5 {[%clk 0:00:09]} 48. Kg3 {[%clk 0:00:10]}  Rd6 {[%clk 0:00:09]} 49. h4+ {[%clk 0:00:09]}  Kg6 {[%clk 0:00:10]} 50. Kf3 {[%clk 0:00:10]}  Rd3+ {[%clk 0:00:10]} 51. Ke4 {[%clk 0:00:10]}  Rd4+ {[%clk 0:00:11]} 52. Ke5 {[%clk 0:00:11]}  Rd8 {[%clk 0:00:10]} 53. Rf6+ {[%clk 0:00:11]}  Kg7 {[%clk 0:00:11]} 54. Rxb6 {[%clk 0:00:12]}  Rd4 {[%clk 0:00:12]} 55. Kf5 {[%clk 0:00:11]}  Rxc4 {[%clk 0:00:12]} 56. Rb7+ {[%clk 0:00:12]}  Kg8 {[%clk 0:00:12]} 57. h5 {[%clk 0:00:11]}  Rb4 {[%clk 0:00:11]} 58. g5 {[%clk 0:00:11]}  hxg5 {[%clk 0:00:11]} 59. Kg6 {[%clk 0:00:12]}  Kf8 {[%clk 0:00:10]} 60. h6 {[%clk 0:00:13]}  Rb1 {[%clk 0:00:09]} 61. h7 {[%clk 0:00:13]}  Rh1 {[%clk 0:00:09]} 62. Rb8+ {[%clk 0:00:13]}  Ke7 {[%clk 0:00:10]} 63. h8=Q {[%clk 0:00:14]}  Rxh8 {[%clk 0:00:10]} 64. Rxh8 {[%clk 0:00:15]}  c4 {[%clk 0:00:11]} 65. Rc8 {[%clk 0:00:15]}  g4 {[%clk 0:00:11]} 66. Rxc4 {[%clk 0:00:16]}  g3 {[%clk 0:00:12]} 67. Rg4 {[%clk 0:00:16]} 1-0


[Site "https://www.chess.com"]